[Event "Late Titled Tuesday Blitz February 8 2022"]
[White "Horvath, Dominik"]
[Black "Kouskoutis, Georgios-Alexandros"]
[WhiteFideId "1642561"]
[BlackFideId "4234049"]
[WhiteElo "2810"]
[BlackElo "2559"]
[Result "1-0"]
[Round "02"]
[TimeControl "180+1"]
[Date "2022.02.09"]
[WhiteClock "0:00:49"]
[BlackClock "0:00:03"]

1. e4 {[%clk 0:02:56]}  c5 {[%clk 0:02:59]} 2. Nf3 {[%clk 0:02:56]}  e6 {[%clk 0:02:58]} 3. d4 {[%clk 0:02:56]}  cxd4 {[%clk 0:02:58]} 4. Nxd4 {[%clk 0:02:57]}  Nc6 {[%clk 0:02:58]} 5. Nc3 {[%clk 0:02:57]}  Qc7 {[%clk 0:02:57]} 6. Be3 {[%clk 0:02:52]}  a6 {[%clk 0:02:56]} 7. Qf3 {[%clk 0:02:53]}  b5 {[%clk 0:02:54]} 8. Qg3 {[%clk 0:02:39]}  Qxg3 {[%clk 0:02:53]} 9. hxg3 {[%clk 0:02:40]}  Bb7 {[%clk 0:02:51]} 10. Nxc6 {[%clk 0:02:39]}  Bxc6 {[%clk 0:02:50]} 11. f3 {[%clk 0:02:39]}  Ne7 {[%clk 0:02:08]} 12. a4 {[%clk 0:02:13]}  b4 {[%clk 0:02:00]} 13. Na2 {[%clk 0:02:11]}  Ng6 {[%clk 0:01:35]} 14. Nc1 {[%clk 0:02:01]}  d5 {[%clk 0:01:27]} 15. exd5 {[%clk 0:01:56]}  Bxd5 {[%clk 0:01:28]} 16. a5 {[%clk 0:01:52]}  Bd6 {[%clk 0:01:23]} 17. Kf2 {[%clk 0:01:52]}  O-O {[%clk 0:01:02]} 18. Nb3 {[%clk 0:01:48]}  Rfc8 {[%clk 0:00:46]} 19. Bd3 {[%clk 0:01:41]}  f5 {[%clk 0:00:31]} 20. f4 {[%clk 0:01:38]}  Bc4 {[%clk 0:00:17]} 21. Rac1 {[%clk 0:01:19]}  Bxd3 {[%clk 0:00:15]} 22. cxd3 {[%clk 0:01:20]}  h6 {[%clk 0:00:13]} 23. Rc4 {[%clk 0:01:19]}  Ne7 {[%clk 0:00:09]} 24. Rhc1 {[%clk 0:01:19]}  Kf7 {[%clk 0:00:09]} 25. Bc5 {[%clk 0:01:15]}  Bxc5+ {[%clk 0:00:07]} 26. Rxc5 {[%clk 0:01:14]}  Rd8 {[%clk 0:00:06]} 27. d4 {[%clk 0:01:13]}  Rd7 {[%clk 0:00:05]} 28. Ke3 {[%clk 0:01:09]}  Rad8 {[%clk 0:00:06]} 29. Kd3 {[%clk 0:01:06]}  g5 {[%clk 0:00:05]} 30. Rc7 {[%clk 0:01:00]}  Kf6 {[%clk 0:00:04]} 31. Rxd7 {[%clk 0:01:00]}  Rxd7 {[%clk 0:00:04]} 32. Rc4 {[%clk 0:00:52]}  Nd5 {[%clk 0:00:04]} 33. fxg5+ {[%clk 0:00:51]}  hxg5 {[%clk 0:00:04]} 34. Rc6 {[%clk 0:00:52]}  Ne7 {[%clk 0:00:03]} 35. Rxa6 {[%clk 0:00:51]}  f4 {[%clk 0:00:02]} 36. gxf4 {[%clk 0:00:51]}  gxf4 {[%clk 0:00:02]} 37. Nc5 {[%clk 0:00:51]}  Rd5 {[%clk 0:00:02]} 38. Rxe6+ {[%clk 0:00:51]}  Kf7 {[%clk 0:00:02]} 39. Re5 {[%clk 0:00:51]}  Rxe5 {[%clk 0:00:01]} 40. dxe5 {[%clk 0:00:51]}  Nc6 {[%clk 0:00:02]} 41. e6+ {[%clk 0:00:51]}  Ke7 {[%clk 0:00:03]} 42. a6 {[%clk 0:00:52]}  Kd6 {[%clk 0:00:03]} 43. Kc4 {[%clk 0:00:52]}  b3 {[%clk 0:00:03]} 44. Nxb3 {[%clk 0:00:50]}  Kxe6 {[%clk 0:00:03]} 45. Kb5 {[%clk 0:00:49]}  Na7+ {[%clk 0:00:02]} 46. Kb6 {[%clk 0:00:50]}  Nc8+ {[%clk 0:00:03]} 47. Kc7 {[%clk 0:00:50]}  Nd6 {[%clk 0:00:03]} 48. Nd4+ {[%clk 0:00:50]}  Kd5 {[%clk 0:00:03]} 49. a7 {[%clk 0:00:49]} 1-0


[Site "https://www.chess.com"]

[Event "Late Titled Tuesday Blitz February 8 2022"]
[White "Iskusnyh, Sergei"]
[Black "Xiong, Jeffery"]
[WhiteFideId "4120027"]
[BlackFideId "2047640"]
[WhiteElo "2492"]
[BlackElo "2727"]
[Result "0-1"]
[Round "02"]
[TimeControl "180+1"]
[Date "2022.02.08"]
[WhiteClock "0:00:09"]
[BlackClock "0:01:03"]

1. d4 {[%clk 0:03:00]}  d5 {[%clk 0:02:59]} 2. c4 {[%clk 0:03:00]}  e6 {[%clk 0:03:00]} 3. Nf3 {[%clk 0:02:59]}  Nf6 {[%clk 0:02:52]} 4. g3 {[%clk 0:02:59]}  dxc4 {[%clk 0:02:52]} 5. Bg2 {[%clk 0:02:58]}  c6 {[%clk 0:02:52]} 6. a4 {[%clk 0:02:52]}  Nbd7 {[%clk 0:02:40]} 7. O-O {[%clk 0:02:50]}  a5 {[%clk 0:02:34]} 8. Qc2 {[%clk 0:02:42]}  Nb6 {[%clk 0:02:34]} 9. Nbd2 {[%clk 0:02:40]}  Be7 {[%clk 0:02:23]} 10. Nxc4 {[%clk 0:02:39]}  Nxc4 {[%clk 0:02:16]} 11. Qxc4 {[%clk 0:02:39]}  O-O {[%clk 0:02:17]} 12. Rd1 {[%clk 0:02:34]}  Qb6 {[%clk 0:02:16]} 13. Ne5 {[%clk 0:01:57]}  Rd8 {[%clk 0:02:16]} 14. e3 {[%clk 0:01:55]}  Bd7 {[%clk 0:02:15]} 15. Qc2 {[%clk 0:01:50]}  Be8 {[%clk 0:02:14]} 16. Nc4 {[%clk 0:01:35]}  Qa7 {[%clk 0:02:14]} 17. e4 {[%clk 0:01:21]}  b5 {[%clk 0:02:01]} 18. axb5 {[%clk 0:01:18]}  cxb5 {[%clk 0:02:02]} 19. Rxa5 {[%clk 0:01:14]}  Qc7 {[%clk 0:01:47]} 20. Rxa8 {[%clk 0:01:13]}  Rxa8 {[%clk 0:01:48]} 21. Ne3 {[%clk 0:01:11]}  Qxc2 {[%clk 0:01:49]} 22. Nxc2 {[%clk 0:01:11]}  b4 {[%clk 0:01:50]} 23. e5 {[%clk 0:01:08]}  Nd5 {[%clk 0:01:47]} 24. Ne3 {[%clk 0:01:08]}  Bc6 {[%clk 0:01:48]} 25. Nxd5 {[%clk 0:01:07]}  Bxd5 {[%clk 0:01:49]} 26. Bxd5 {[%clk 0:01:07]}  exd5 {[%clk 0:01:48]} 27. Be3 {[%clk 0:01:04]}  Kf8 {[%clk 0:01:43]} 28. Rc1 {[%clk 0:01:04]}  Ke8 {[%clk 0:01:43]} 29. Rc7 {[%clk 0:00:32]}  Ra2 {[%clk 0:01:35]} 30. b3 {[%clk 0:00:31]}  Rb2 {[%clk 0:01:32]} 31. Rb7 {[%clk 0:00:31]}  Rxb3 {[%clk 0:01:32]} 32. Rb5 {[%clk 0:00:31]}  Rb1+ {[%clk 0:01:27]} 33. Kg2 {[%clk 0:00:30]}  b3 {[%clk 0:01:28]} 34. Bd2 {[%clk 0:00:23]}  Kd7 {[%clk 0:01:18]} 35. Rb7+ {[%clk 0:00:19]}  Kc6 {[%clk 0:01:14]} 36. Rxe7 {[%clk 0:00:17]}  b2 {[%clk 0:01:11]} 37. Bc3 {[%clk 0:00:17]}  Rg1+ {[%clk 0:01:11]} 38. Kxg1 {[%clk 0:00:18]}  b1=Q+ {[%clk 0:01:12]} 39. Kg2 {[%clk 0:00:18]}  Qe4+ {[%clk 0:01:11]} 40. Kg1 {[%clk 0:00:18]}  Qf3 {[%clk 0:01:08]} 41. Bb4 {[%clk 0:00:14]}  Qd1+ {[%clk 0:01:07]} 42. Kg2 {[%clk 0:00:14]}  Qxd4 {[%clk 0:01:08]} 43. Bd6 {[%clk 0:00:14]}  Qe4+ {[%clk 0:01:09]} 44. Kg1 {[%clk 0:00:10]}  d4 {[%clk 0:01:07]} 45. Rc7+ {[%clk 0:00:10]}  Kd5 {[%clk 0:01:07]} 46. Rxf7 {[%clk 0:00:09]}  d3 {[%clk 0:01:06]} 47. Bb4 {[%clk 0:00:09]}  Qxb4 {[%clk 0:01:06]} 48. Rxg7 {[%clk 0:00:09]}  d2 {[%clk 0:01:03]} 0-1


[Site "https://www.chess.com"]

[Event "Late Titled Tuesday Blitz February 8 2022"]
[White "Izoria, Zviad"]
[Black "Glavina, Pablo"]
[WhiteFideId "13601733"]
[BlackFideId "100234"]
[WhiteElo "2626"]
[BlackElo "2369"]
[Result "1-0"]
[Round "02"]
[TimeControl "180+1"]
[Date "2022.02.09"]
[WhiteClock "0:01:23"]
[BlackClock "0:01:19"]

1. Nf3 {[%clk 0:03:00]}  Nf6 {[%clk 0:02:57]} 2. c4 {[%clk 0:03:00]}  c5 {[%clk 0:02:56]} 3. Nc3 {[%clk 0:03:00]}  Nc6 {[%clk 0:02:55]} 4. e3 {[%clk 0:03:00]}  d5 {[%clk 0:02:49]} 5. cxd5 {[%clk 0:03:01]}  Nxd5 {[%clk 0:02:49]} 6. Bc4 {[%clk 0:02:58]}  e6 {[%clk 0:02:48]} 7. O-O {[%clk 0:02:57]}  Be7 {[%clk 0:02:48]} 8. d4 {[%clk 0:02:56]}  cxd4 {[%clk 0:02:48]} 9. exd4 {[%clk 0:02:57]}  O-O {[%clk 0:02:48]} 10. Re1 {[%clk 0:02:57]}  Nf6 {[%clk 0:02:46]} 11. a3 {[%clk 0:02:53]}  b6 {[%clk 0:02:45]} 12. Bf4 {[%clk 0:02:43]}  Bb7 {[%clk 0:02:44]} 13. Rc1 {[%clk 0:02:42]}  Rc8 {[%clk 0:02:44]} 14. Ba2 {[%clk 0:02:40]}  Na5 {[%clk 0:02:44]} 15. Ne5 {[%clk 0:02:30]}  Bd5 {[%clk 0:02:36]} 16. Nxd5 {[%clk 0:02:23]}  Nxd5 {[%clk 0:02:36]} 17. Rxc8 {[%clk 0:02:21]}  Qxc8 {[%clk 0:02:37]} 18. Bd2 {[%clk 0:02:14]}  Nc6 {[%clk 0:02:31]} 19. Bxd5 {[%clk 0:02:12]}  Nxe5 {[%clk 0:02:31]} 20. Rxe5 {[%clk 0:02:11]}  Bf6 {[%clk 0:02:25]} 21. Bb3 {[%clk 0:02:06]}  Bxe5 {[%clk 0:02:24]} 22. dxe5 {[%clk 0:02:07]}  Rd8 {[%clk 0:02:25]} 23. Qe2 {[%clk 0:01:59]}  Qc5 {[%clk 0:02:10]} 24. Bc3 {[%clk 0:01:56]}  a5 {[%clk 0:02:09]} 25. h3 {[%clk 0:01:54]}  g6 {[%clk 0:02:08]} 26. a4 {[%clk 0:01:52]}  Rd7 {[%clk 0:02:06]} 27. Bc4 {[%clk 0:01:52]}  Rd8 {[%clk 0:02:01]} 28. h4 {[%clk 0:01:51]}  h5 {[%clk 0:02:00]} 29. g3 {[%clk 0:01:51]}  Qc6 {[%clk 0:01:59]} 30. b3 {[%clk 0:01:47]}  Qc5 {[%clk 0:01:56]} 31. Bd2 {[%clk 0:01:41]}  Qd4 {[%clk 0:01:52]} 32. Bg5 {[%clk 0:01:40]}  Rc8 {[%clk 0:01:38]} 33. Qe3 {[%clk 0:01:36]}  Qc5 {[%clk 0:01:28]} 34. Qxc5 {[%clk 0:01:33]}  Rxc5 {[%clk 0:01:29]} 35. f4 {[%clk 0:01:32]}  Rc8 {[%clk 0:01:29]} 36. Be7 {[%clk 0:01:29]}  Kg7 {[%clk 0:01:22]} 37. Kf2 {[%clk 0:01:29]}  Rc7 {[%clk 0:01:21]} 38. Bd6 {[%clk 0:01:26]}  Rc8 {[%clk 0:01:20]} 39. Ke3 {[%clk 0:01:26]}  f6 {[%clk 0:01:20]} 40. Kd4 {[%clk 0:01:22]}  fxe5+ {[%clk 0:01:19]} 41. Kxe5 {[%clk 0:01:23]} 1-0


[Site "https://www.chess.com"]

[Event "Late Titled Tuesday Blitz February 8 2022"]
[White "Jacobson, Aaron"]
[Black "Smirnov, Pavel"]
[WhiteFideId "2089912"]
[BlackFideId "4123425"]
[WhiteElo "2543"]
[BlackElo "2789"]
[Result "0-1"]
[Round "02"]
[TimeControl "180+1"]
[Date "2022.02.09"]
[WhiteClock "0:00:03"]
[BlackClock "0:01:48"]

1. e4 {[%clk 0:03:00]}  e5 {[%clk 0:02:59]} 2. Nf3 {[%clk 0:02:57]}  Nc6 {[%clk 0:02:59]} 3. Nc3 {[%clk 0:02:55]}  Nf6 {[%clk 0:02:58]} 4. d4 {[%clk 0:02:55]}  exd4 {[%clk 0:02:57]} 5. Nxd4 {[%clk 0:02:56]}  Bb4 {[%clk 0:02:57]} 6. Nxc6 {[%clk 0:02:57]}  bxc6 {[%clk 0:02:58]} 7. Bd3 {[%clk 0:02:57]}  d5 {[%clk 0:02:58]} 8. exd5 {[%clk 0:02:58]}  O-O {[%clk 0:02:58]} 9. O-O {[%clk 0:02:59]}  Bg4 {[%clk 0:02:58]} 10. f3 {[%clk 0:03:00]}  Bh5 {[%clk 0:02:58]} 11. Bg5 {[%clk 0:03:00]}  Qd6 {[%clk 0:02:57]} 12. a3 {[%clk 0:03:00]}  Bxc3 {[%clk 0:02:54]} 13. bxc3 {[%clk 0:02:58]}  Nxd5 {[%clk 0:02:54]} 14. Qe1 {[%clk 0:02:40]}  Qc5+ {[%clk 0:02:48]} 15. Kh1 {[%clk 0:02:31]}  Rfe8 {[%clk 0:02:34]} 16. Qh4 {[%clk 0:02:25]}  Bg6 {[%clk 0:02:34]} 17. c4 {[%clk 0:02:06]}  Ne3 {[%clk 0:02:31]} 18. Bxe3 {[%clk 0:01:22]}  Rxe3 {[%clk 0:02:28]} 19. Qf2 {[%clk 0:01:16]}  Rae8 {[%clk 0:02:26]} 20. Rae1 {[%clk 0:01:08]}  h5 {[%clk 0:02:08]} 21. Bxg6 {[%clk 0:01:00]}  fxg6 {[%clk 0:02:08]} 22. Rxe3 {[%clk 0:00:25]}  Qxe3 {[%clk 0:02:05]} 23. Qxe3 {[%clk 0:00:16]}  Rxe3 {[%clk 0:02:04]} 24. Kg1 {[%clk 0:00:17]}  Rxa3 {[%clk 0:02:02]} 25. Rb1 {[%clk 0:00:17]}  Rc3 {[%clk 0:02:02]} 26. Rb7 {[%clk 0:00:16]}  a5 {[%clk 0:01:55]} 27. Rxc7 {[%clk 0:00:13]}  Rxc4 {[%clk 0:01:56]} 28. Ra7 {[%clk 0:00:13]}  a4 {[%clk 0:01:55]} 29. Kf1 {[%clk 0:00:07]}  Kh7 {[%clk 0:01:54]} 30. h3 {[%clk 0:00:07]}  h4 {[%clk 0:01:53]} 31. Kg1 {[%clk 0:00:06]}  g5 {[%clk 0:01:53]} 32. Kf1 {[%clk 0:00:07]}  Kg6 {[%clk 0:01:53]} 33. Ra5 {[%clk 0:00:06]}  Kf6 {[%clk 0:01:53]} 34. c3 {[%clk 0:00:05]}  Rxc3 {[%clk 0:01:50]} 35. Rxa4 {[%clk 0:00:05]}  Rc1+ {[%clk 0:01:50]} 36. Ke2 {[%clk 0:00:05]}  Rc2+ {[%clk 0:01:51]} 37. Kf1 {[%clk 0:00:06]}  c5 {[%clk 0:01:51]} 38. Re4 {[%clk 0:00:05]}  c4 {[%clk 0:01:50]} 39. Re8 {[%clk 0:00:06]}  c3 {[%clk 0:01:49]} 40. Re4 {[%clk 0:00:05]}  Rd2 {[%clk 0:01:48]} 41. Rc4 {[%clk 0:00:04]}  c2 {[%clk 0:01:47]} 42. Kg1 {[%clk 0:00:02]}  Rd1+ {[%clk 0:01:47]} 43. Kh2 {[%clk 0:00:03]}  c1=Q {[%clk 0:01:48]} 0-1


[Site "https://www.chess.com"]

[Event "Late Titled Tuesday Blitz February 8 2022"]
[White "Jaferian, Koosha"]
[Black "Todorovic, Bojan"]
[WhiteFideId "12507440"]
[BlackFideId "917087"]
[WhiteElo "2027"]
[BlackElo "2266"]
[Result "1-0"]
[Round "02"]
[TimeControl "180+1"]
[Date "2022.02.09"]
[WhiteClock "0:00:07"]
[BlackClock "0:00:12"]

1. Nf3 {[%clk 0:03:00]}  Nf6 {[%clk 0:02:58]} 2. b3 {[%clk 0:03:01]}  e6 {[%clk 0:02:55]} 3. Bb2 {[%clk 0:03:01]}  b6 {[%clk 0:02:55]} 4. g3 {[%clk 0:03:01]}  Bb7 {[%clk 0:02:55]} 5. Bg2 {[%clk 0:03:02]}  Be7 {[%clk 0:02:55]} 6. O-O {[%clk 0:03:03]}  O-O {[%clk 0:02:55]} 7. c4 {[%clk 0:03:04]}  d5 {[%clk 0:02:53]} 8. cxd5 {[%clk 0:03:02]}  exd5 {[%clk 0:02:52]} 9. d4 {[%clk 0:03:02]}  c5 {[%clk 0:02:46]} 10. e3 {[%clk 0:03:03]}  Nbd7 {[%clk 0:02:41]} 11. Nbd2 {[%clk 0:03:00]}  Ne4 {[%clk 0:02:38]} 12. Rc1 {[%clk 0:02:56]}  Bf6 {[%clk 0:02:32]} 13. Qc2 {[%clk 0:02:52]}  Rc8 {[%clk 0:02:26]} 14. Qb1 {[%clk 0:02:51]}  Re8 {[%clk 0:02:13]} 15. Rfd1 {[%clk 0:02:47]}  Qe7 {[%clk 0:02:03]} 16. dxc5 {[%clk 0:02:36]}  Bxb2 {[%clk 0:01:47]} 17. Qxb2 {[%clk 0:02:35]}  Ndxc5 {[%clk 0:01:43]} 18. Qb1 {[%clk 0:02:08]}  Ba6 {[%clk 0:01:36]} 19. Bf1 {[%clk 0:01:58]}  Bxf1 {[%clk 0:00:56]} 20. Nxf1 {[%clk 0:01:59]}  Qf6 {[%clk 0:00:55]} 21. Kg2 {[%clk 0:01:51]}  Nc3 {[%clk 0:00:55]} 22. Rxc3 {[%clk 0:01:46]}  Qxc3 {[%clk 0:00:56]} 23. Rxd5 {[%clk 0:01:46]}  Ne4 {[%clk 0:00:55]} 24. Nd4 {[%clk 0:01:18]}  Qc1 {[%clk 0:00:45]} 25. Qd3 {[%clk 0:01:15]}  Qc3 {[%clk 0:00:38]} 26. Qb1 {[%clk 0:01:14]}  g6 {[%clk 0:00:35]} 27. Nb5 {[%clk 0:00:59]}  Qc6 {[%clk 0:00:34]} 28. Qd3 {[%clk 0:00:32]}  Nf6 {[%clk 0:00:34]} 29. e4 {[%clk 0:00:32]}  Nxd5 {[%clk 0:00:33]} 30. exd5 {[%clk 0:00:33]}  Qc5 {[%clk 0:00:28]} 31. Ne3 {[%clk 0:00:31]}  Rcd8 {[%clk 0:00:27]} 32. Nd4 {[%clk 0:00:27]}  Rxe3 {[%clk 0:00:24]} 33. fxe3 {[%clk 0:00:27]}  Qxd5+ {[%clk 0:00:25]} 34. Kf2 {[%clk 0:00:27]}  Rc8 {[%clk 0:00:24]} 35. e4 {[%clk 0:00:15]}  Qd6 {[%clk 0:00:24]} 36. Ke3 {[%clk 0:00:14]}  Rd8 {[%clk 0:00:24]} 37. Qc4 {[%clk 0:00:14]}  Kg7 {[%clk 0:00:23]} 38. Qc3 {[%clk 0:00:14]}  Kg8 {[%clk 0:00:22]} 39. Qc4 {[%clk 0:00:15]}  Qc5 {[%clk 0:00:23]} 40. Qxc5 {[%clk 0:00:11]}  bxc5 {[%clk 0:00:23]} 41. Nb5 {[%clk 0:00:12]}  a5 {[%clk 0:00:21]} 42. Nc7 {[%clk 0:00:12]}  Rd1 {[%clk 0:00:20]} 43. Na6 {[%clk 0:00:10]}  Ra1 {[%clk 0:00:20]} 44. Nxc5 {[%clk 0:00:08]}  Rxa2 {[%clk 0:00:21]} 45. h4 {[%clk 0:00:09]}  Kg7 {[%clk 0:00:21]} 46. Kf4 {[%clk 0:00:08]}  Kf6 {[%clk 0:00:21]} 47. e5+ {[%clk 0:00:08]}  Ke7 {[%clk 0:00:22]} 48. Nb7 {[%clk 0:00:06]}  Ra3 {[%clk 0:00:21]} 49. g4 {[%clk 0:00:03]}  h6 {[%clk 0:00:21]} 50. g5 {[%clk 0:00:03]}  h5 {[%clk 0:00:21]} 51. Nc5 {[%clk 0:00:02]}  Ke8 {[%clk 0:00:20]} 52. Nb7 {[%clk 0:00:02]}  Rxb3 {[%clk 0:00:17]} 53. Nxa5 {[%clk 0:00:02]}  Rb4+ {[%clk 0:00:17]} 54. Kg3 {[%clk 0:00:03]}  Rg4+ {[%clk 0:00:14]} 55. Kh3 {[%clk 0:00:03]}  Re4 {[%clk 0:00:14]} 56. Nc6 {[%clk 0:00:03]}  Kd7 {[%clk 0:00:14]} 57. Nb8+ {[%clk 0:00:04]}  Kc7 {[%clk 0:00:14]} 58. Na6+ {[%clk 0:00:04]}  Kb6 {[%clk 0:00:14]} 59. Nb8 {[%clk 0:00:05]}  Kc7 {[%clk 0:00:13]} 60. Na6+ {[%clk 0:00:05]}  Kd7 {[%clk 0:00:13]} 61. Nc5+ {[%clk 0:00:05]}  Kc6 {[%clk 0:00:13]} 62. Nxe4 {[%clk 0:00:06]}  Kd5 {[%clk 0:00:13]} 63. Nf6+ {[%clk 0:00:06]}  Kxe5 {[%clk 0:00:13]} 64. Kg3 {[%clk 0:00:07]}  Kf5 {[%clk 0:00:13]} 65. Kf3 {[%clk 0:00:07]}  Ke5 {[%clk 0:00:12]} 66. Nd7+ {[%clk 0:00:06]}  Kf5 {[%clk 0:00:13]} 67. Nf6 {[%clk 0:00:06]}  Ke5 {[%clk 0:00:13]} 68. Ne8 {[%clk 0:00:07]}  Kf5 {[%clk 0:00:12]} 69. Nd6+ {[%clk 0:00:07]} 1-0


[Site "https://www.chess.com"]

[Event "Late Titled Tuesday Blitz February 8 2022"]
[White "Janaszak, Dawid"]
[Black "Timofeev, Artyom"]
[WhiteFideId "1119206"]
[BlackFideId "4140419"]
[WhiteElo "2199"]
[BlackElo "2583"]
[Result "0-1"]
[Round "02"]
[TimeControl "180+1"]
[Date "2022.02.08"]
[WhiteClock "0:00:04"]
[BlackClock "0:00:09"]

1. e4 {[%clk 0:03:00]}  c5 {[%clk 0:02:59]} 2. Nc3 {[%clk 0:03:00]}  Nc6 {[%clk 0:02:52]} 3. Bb5 {[%clk 0:02:58]}  Nd4 {[%clk 0:02:52]} 4. Nf3 {[%clk 0:02:59]}  e6 {[%clk 0:02:52]} 5. O-O {[%clk 0:02:58]}  Ne7 {[%clk 0:02:52]} 6. Re1 {[%clk 0:02:58]}  a6 {[%clk 0:02:47]} 7. Bf1 {[%clk 0:02:54]}  Nec6 {[%clk 0:02:47]} 8. Nxd4 {[%clk 0:02:30]}  cxd4 {[%clk 0:02:46]} 9. Ne2 {[%clk 0:02:14]}  Bc5 {[%clk 0:02:42]} 10. c3 {[%clk 0:02:08]}  O-O {[%clk 0:02:41]} 11. b4 {[%clk 0:02:08]}  Ba7 {[%clk 0:02:39]} 12. a4 {[%clk 0:02:01]}  dxc3 {[%clk 0:02:20]} 13. dxc3 {[%clk 0:01:54]}  d6 {[%clk 0:02:20]} 14. Ra2 {[%clk 0:01:41]}  Qf6 {[%clk 0:02:04]} 15. Nf4 {[%clk 0:01:24]}  Qxc3 {[%clk 0:01:52]} 16. Bb2 {[%clk 0:01:14]}  Qxb4 {[%clk 0:01:46]} 17. Nh5 {[%clk 0:01:01]}  e5 {[%clk 0:01:35]} 18. Ba3 {[%clk 0:00:46]}  Qa5 {[%clk 0:01:34]} 19. Bxd6 {[%clk 0:00:43]}  Rd8 {[%clk 0:01:30]} 20. Rd2 {[%clk 0:00:43]}  Be6 {[%clk 0:01:29]} 21. Kh1 {[%clk 0:00:23]}  Bd4 {[%clk 0:01:19]} 22. Ba3 {[%clk 0:00:19]}  Bc3 {[%clk 0:01:13]} 23. Rxd8+ {[%clk 0:00:10]}  Qxd8 {[%clk 0:01:01]} 24. Qxd8+ {[%clk 0:00:07]}  Rxd8 {[%clk 0:01:01]} 25. Rb1 {[%clk 0:00:07]}  a5 {[%clk 0:00:49]} 26. Bc5 {[%clk 0:00:07]}  Bb4 {[%clk 0:00:46]} 27. Bb6 {[%clk 0:00:06]}  Rd6 {[%clk 0:00:43]} 28. f4 {[%clk 0:00:06]}  Bg4 {[%clk 0:00:28]} 29. Ng3 {[%clk 0:00:03]}  exf4 {[%clk 0:00:27]} 30. Nf5 {[%clk 0:00:04]}  Bxf5 {[%clk 0:00:24]} 31. exf5 {[%clk 0:00:05]}  h5 {[%clk 0:00:24]} 32. h3 {[%clk 0:00:04]}  Rd5 {[%clk 0:00:22]} 33. Bb5 {[%clk 0:00:03]}  Rxf5 {[%clk 0:00:22]} 34. Rd1 {[%clk 0:00:04]}  Re5 {[%clk 0:00:19]} 35. Rd7 {[%clk 0:00:04]}  Re7 {[%clk 0:00:15]} 36. Bxc6 {[%clk 0:00:02]}  bxc6 {[%clk 0:00:15]} 37. Rd8+ {[%clk 0:00:02]}  Kh7 {[%clk 0:00:14]} 38. Rc8 {[%clk 0:00:02]}  Re6 {[%clk 0:00:14]} 39. Rc7 {[%clk 0:00:02]}  Kg6 {[%clk 0:00:14]} 40. Ra7 {[%clk 0:00:03]}  Re5 {[%clk 0:00:12]} 41. Rc7 {[%clk 0:00:02]}  c5 {[%clk 0:00:12]} 42. Ra7 {[%clk 0:00:02]}  c4 {[%clk 0:00:12]} 43. Rc7 {[%clk 0:00:03]}  c3 {[%clk 0:00:13]} 44. Rc6+ {[%clk 0:00:03]}  f6 {[%clk 0:00:12]} 45. Bc7 {[%clk 0:00:04]}  Re4 {[%clk 0:00:12]} 46. Kg1 {[%clk 0:00:03]}  Re2 {[%clk 0:00:12]} 47. Kf1 {[%clk 0:00:03]}  Ra2 {[%clk 0:00:11]} 48. Bxf4 {[%clk 0:00:03]}  Rxa4 {[%clk 0:00:11]} 49. Be5 {[%clk 0:00:04]}  Ra2 {[%clk 0:00:09]} 50. Bxc3 {[%clk 0:00:04]}  Rc2 {[%clk 0:00:09]} 0-1


[Site "https://www.chess.com"]